[Event "*** MasterClass Titled Tuesday Blitz"]
[Site "Chess.com"]
[Date "2017.12.05"]
[Round "2"]
[White "GMMarcinDziuba"]
[Black "mikhaillushenkov"]
[Result "1-0"]
[WhiteElo "2523"]
[BlackElo "2572"]
[TimeControl "180+2"]
[EndTime "14:33:33 PST"]
[Termination "GMMarcinDziuba won by resignation"]

1. d4 {[%clk 0:02:52.2]} 1... Nf6 {[%clk 0:03:00.3]} 2. c4 {[%clk 0:02:52.9]}
2... e6 {[%clk 0:03:01.5]} 3. Nf3 {[%clk 0:02:51.8]} 3... c5 {[%clk 0:03:01.1]}
4. d5 {[%clk 0:02:52.3]} 4... exd5 {[%clk 0:03:03]} 5. cxd5 {[%clk 0:02:54.2]}
5... Bd6 {[%clk 0:03:04.2]} 6. Nc3 {[%clk 0:02:53.9]} 6... O-O {[%clk
0:03:04.1]} 7. g3 {[%clk 0:02:54.5]} 7... Re8 {[%clk 0:03:05.1]} 8. Bg2 {[%clk
0:02:55.1]} 8... a6 {[%clk 0:03:06.7]} 9. O-O {[%clk 0:02:55.6]} 9... Qe7 {[%clk
0:03:06.6]} 10. Re1 {[%clk 0:02:55.9]} 10... Bc7 {[%clk 0:03:05.1]} 11. e4
{[%clk 0:02:54.9]} 11... d6 {[%clk 0:03:05.8]} 12. Nd2 {[%clk 0:02:53.2]} 12...
Nbd7 {[%clk 0:03:02.7]} 13. a4 {[%clk 0:02:50.9]} 13... Ne5 {[%clk 0:03:01.8]}
14. Qe2 {[%clk 0:02:49]} 14... Ba5 {[%clk 0:02:37.5]} 15. f4 {[%clk 0:02:43.7]}
15... Ng6 {[%clk 0:02:35.2]} 16. Nc4 {[%clk 0:02:39.7]} 16... Bxc3 {[%clk
0:02:34.5]} 17. bxc3 {[%clk 0:02:41.6]} 17... Nxd5 {[%clk 0:02:34.3]} 18. Qd3
{[%clk 0:02:39.1]} 18... Nf6 {[%clk 0:02:03]} 19. Qxd6 {[%clk 0:02:32.5]} 19...
Be6 {[%clk 0:01:49.8]} 20. Qxe7 {[%clk 0:02:31.9]} 20... Rxe7 {[%clk 0:01:51.7]}
21. Nb6 {[%clk 0:02:27.4]} 21... Rd8 {[%clk 0:01:44.9]} 22. Ba3 {[%clk 0:02:28]}
22... Bb3 {[%clk 0:01:25.5]} 23. Bxc5 {[%clk 0:02:22.8]} 23... Rc7 {[%clk
0:01:26.2]} 24. Bd4 {[%clk 0:02:21.1]} 24... Nd7 {[%clk 0:01:18.5]} 25. Rab1
{[%clk 0:02:18.4]} 25... Bc2 {[%clk 0:01:12.5]} 26. Rb2 {[%clk 0:02:19.5]} 26...
Bd3 {[%clk 0:01:08.3]} 27. Nd5 {[%clk 0:02:20]} 27... Rc4 {[%clk 0:01:05.4]} 28.
Rd1 {[%clk 0:02:12]} 1-0

[Event "*** MasterClass Titled Tuesday Blitz"]
[Site "Chess.com"]
[Date "2017.12.05"]
[Round "2"]
[White "Swarajan"]
[Black "josmito10"]
[Result "0-1"]
[WhiteElo "2130"]
[BlackElo "2264"]
[TimeControl "180+2"]
[EndTime "14:34:01 PST"]
[Termination "josmito10 won by resignation"]

1. d4 {[%clk 0:03:01.9]} 1... Nf6 {[%clk 0:02:59.7]} 2. c4 {[%clk 0:03:03.4]}
2... e6 {[%clk 0:03:00.1]} 3. Nf3 {[%clk 0:03:04.2]} 3... Bb4+ {[%clk
0:02:59.9]} 4. Nbd2 {[%clk 0:03:04.8]} 4... O-O {[%clk 0:02:59.7]} 5. g3 {[%clk
0:03:05.8]} 5... d5 {[%clk 0:02:59]} 6. Bg2 {[%clk 0:03:06.9]} 6... dxc4 {[%clk
0:02:59.9]} 7. O-O {[%clk 0:03:07.5]} 7... b5 {[%clk 0:02:55.1]} 8. Ne5 {[%clk
0:03:03.1]} 8... Nd5 {[%clk 0:02:55.7]} 9. a4 {[%clk 0:03:01.4]} 9... c6 {[%clk
0:02:54.4]} 10. axb5 {[%clk 0:02:52]} 10... cxb5 {[%clk 0:02:54.2]} 11. b3
{[%clk 0:02:49.5]} 11... c3 {[%clk 0:02:49.2]} 12. Ndf3 {[%clk 0:02:49.3]} 12...
Bb7 {[%clk 0:02:47.5]} 13. Nd3 {[%clk 0:02:46.2]} 13... Be7 {[%clk 0:02:42.5]}
14. e4 {[%clk 0:02:42.1]} 14... Nf6 {[%clk 0:02:38.2]} 15. e5 {[%clk 0:02:37.8]}
15... Nd5 {[%clk 0:02:36.6]} 16. Nc5 {[%clk 0:02:28.5]} 16... Bxc5 {[%clk
0:02:35.6]} 17. dxc5 {[%clk 0:02:29.6]} 17... Nd7 {[%clk 0:02:35.3]} 18. Qc2
{[%clk 0:01:53.6]} 18... Nxc5 {[%clk 0:02:30]} 19. Rd1 {[%clk 0:01:54.4]} 19...
Qc7 {[%clk 0:02:26.4]} 20. b4 {[%clk 0:01:46.8]} 20... Na4 {[%clk 0:02:04.8]}
21. Ba3 {[%clk 0:01:43]} 21... Rfd8 {[%clk 0:02:01.9]} 22. Nd4 {[%clk
0:01:42.3]} 22... a6 {[%clk 0:02:00.6]} 23. Rac1 {[%clk 0:01:41.4]} 23... Qxe5
{[%clk 0:02:00.8]} 24. Nb3 {[%clk 0:01:34.8]} 24... Rac8 {[%clk 0:01:59]} 25.
Na5 {[%clk 0:01:31.9]} 25... Ba8 {[%clk 0:01:59.3]} 26. Re1 {[%clk 0:01:26.9]}
26... Qc7 {[%clk 0:01:58.7]} 27. h4 {[%clk 0:01:21.5]} 27... Nab6 {[%clk
0:01:59.3]} 28. Qb3 {[%clk 0:01:13.6]} 28... Nc4 {[%clk 0:01:59.8]} 29. Bxd5
{[%clk 0:01:07.8]} 29... Bxd5 {[%clk 0:01:56.7]} 30. Rxc3 {[%clk 0:01:05.5]}
30... Nxa5 {[%clk 0:01:57.2]} 31. Rxc7 {[%clk 0:01:06.1]} 31... Nxb3 {[%clk
0:01:53.9]} 32. Rxc8 {[%clk 0:01:07]} 32... Rxc8 {[%clk 0:01:54.7]} 0-1

[Event "*** MasterClass Titled Tuesday Blitz"]
[Site "Chess.com"]
[Date "2017.12.05"]
[Round "2"]
[White "livestrong04"]
[Black "chessking2151"]
[Result "0-1"]
[WhiteElo "2348"]
[BlackElo "2363"]
[TimeControl "180+2"]
[EndTime "14:34:14 PST"]
[Termination "chessking2151 won by resignation"]

1. e4 {[%clk 0:02:59.1]} 1... e5 {[%clk 0:02:59.8]} 2. Nf3 {[%clk 0:02:58.9]}
2... Nc6 {[%clk 0:02:58.4]} 3. d4 {[%clk 0:02:58.7]} 3... exd4 {[%clk
0:02:49.6]} 4. Nxd4 {[%clk 0:02:58.1]} 4... Bc5 {[%clk 0:02:50.5]} 5. Nb3 {[%clk
0:02:57]} 5... Bb6 {[%clk 0:02:48.9]} 6. Nc3 {[%clk 0:02:58.9]} 6... a5 {[%clk
0:02:36.1]} 7. Qe2 {[%clk 0:03:00.8]} 7... a4 {[%clk 0:02:36.7]} 8. Nd2 {[%clk
0:03:01.3]} 8... Nd4 {[%clk 0:02:35.6]} 9. Qd1 {[%clk 0:03:00.3]} 9... Nf6
{[%clk 0:02:32.6]} 10. Bd3 {[%clk 0:02:46.5]} 10... d6 {[%clk 0:02:14.9]} 11.
O-O {[%clk 0:02:40.9]} 11... O-O {[%clk 0:02:10.9]} 12. Kh1 {[%clk 0:02:40.5]}
12... Ng4 {[%clk 0:02:05.9]} 13. Nc4 {[%clk 0:02:39.3]} 13... Qh4 {[%clk
0:02:01.7]} 14. h3 {[%clk 0:02:35.2]} 14... Ba7 {[%clk 0:01:36.5]} 15. Qe1
{[%clk 0:02:10.6]} 15... Nf3 {[%clk 0:01:08.5]} 16. Qe2 {[%clk 0:01:55.8]} 16...
Nxf2+ {[%clk 0:00:30.3]} 17. Rxf2 {[%clk 0:01:54.2]} 17... Bxh3 {[%clk
0:00:26.3]} 18. gxf3 {[%clk 0:01:25.3]} 18... Bxf2 {[%clk 0:00:23.4]} 19. Bg5
{[%clk 0:01:07.4]} 19... Bg2+ {[%clk 0:00:22.4]} 0-1

[Event "*** MasterClass Titled Tuesday Blitz"]
[Site "Chess.com"]
[Date "2017.12.05"]
[Round "2"]
[White "Iball95"]
[Black "R2D3"]
[Result "1-0"]
[WhiteElo "2582"]
[BlackElo "1703"]
[TimeControl "180+2"]
[EndTime "14:34:16 PST"]
[Termination "Iball95 won by resignation"]

1. c4 {[%clk 0:02:46.5]} 1... g6 {[%clk 0:02:49.4]} 2. g3 {[%clk 0:02:45.8]}
2... Bg7 {[%clk 0:02:50.5]} 3. Bg2 {[%clk 0:02:46.8]} 3... Nf6 {[%clk
0:02:51.5]} 4. Nf3 {[%clk 0:02:48]} 4... O-O {[%clk 0:02:51.5]} 5. O-O {[%clk
0:02:49.6]} 5... c6 {[%clk 0:02:52.3]} 6. b3 {[%clk 0:02:46.9]} 6... d6 {[%clk
0:02:53.3]} 7. Bb2 {[%clk 0:02:48]} 7... Bf5 {[%clk 0:02:53.8]} 8. d3 {[%clk
0:02:46.8]} 8... Re8 {[%clk 0:02:52.2]} 9. Nbd2 {[%clk 0:02:47.5]} 9... e5
{[%clk 0:02:52.5]} 10. c5 {[%clk 0:02:38.4]} 10... e4 {[%clk 0:02:37.4]} 11.
dxe4 {[%clk 0:02:37.2]} 11... Nxe4 {[%clk 0:02:36.8]} 12. Bxg7 {[%clk
0:02:37.3]} 12... Kxg7 {[%clk 0:02:37.5]} 13. Nxe4 {[%clk 0:02:38.3]} 13... Bxe4
{[%clk 0:02:16.5]} 14. cxd6 {[%clk 0:02:39.3]} 14... Re6 {[%clk 0:02:06.2]} 15.
Qd4+ {[%clk 0:02:19.2]} 15... Qf6 {[%clk 0:01:47.7]} 16. Rad1 {[%clk 0:02:18.7]}
16... Nd7 {[%clk 0:01:44.3]} 17. Ng5 {[%clk 0:02:17]} 17... Bxg2 {[%clk
0:01:20.8]} 18. Nxe6+ {[%clk 0:02:15.8]} 18... fxe6 {[%clk 0:01:21.4]} 19. Qxf6+
{[%clk 0:02:11.8]} 19... Kxf6 {[%clk 0:01:12]} 20. Kxg2 {[%clk 0:02:12.6]} 20...
Rd8 {[%clk 0:01:11.2]} 21. f4 {[%clk 0:02:12.8]} 21... Nc5 {[%clk 0:01:06.1]}
22. Kf3 {[%clk 0:02:13.2]} 22... e5 {[%clk 0:00:57.4]} 23. e4 {[%clk 0:02:13.4]}
23... Ne6 {[%clk 0:00:52.7]} 24. Ke3 {[%clk 0:02:12.7]} 24... exf4+ {[%clk
0:00:44.6]} 25. gxf4 {[%clk 0:02:14.6]} 25... Nc5 {[%clk 0:00:41.1]} 26. b4
{[%clk 0:02:10.4]} 26... Na4 {[%clk 0:00:34.9]} 27. f5 {[%clk 0:02:03.7]} 27...
Nc3 {[%clk 0:00:29.4]} 28. fxg6+ {[%clk 0:02:03.9]} 28... Kxg6 {[%clk
0:00:31.3]} 29. Rd2 {[%clk 0:02:01.4]} 29... Rd7 {[%clk 0:00:20]} 30. Rg2+
{[%clk 0:02:01.6]} 30... Kh6 {[%clk 0:00:18.1]} 31. Rf3 {[%clk 0:02:01.3]} 1-0

[Event "*** MasterClass Titled Tuesday Blitz"]
[Site "Chess.com"]
[Date "2017.12.05"]
[Round "2"]
[White "Caisachess"]
[Black "sorito"]
[Result "1/2-1/2"]
[WhiteElo "2340"]
[BlackElo "2381"]
[TimeControl "180+2"]
[EndTime "14:34:28 PST"]
[Termination "Game drawn by repetition"]

1. e4 {[%clk 0:03:01.9]} 1... c5 {[%clk 0:03:00.4]} 2. c3 {[%clk 0:03:02.9]}
2... d5 {[%clk 0:02:56.3]} 3. exd5 {[%clk 0:03:04.8]} 3... Qxd5 {[%clk
0:02:55.7]} 4. d4 {[%clk 0:03:06.7]} 4... Nf6 {[%clk 0:02:55.6]} 5. Nf3 {[%clk
0:03:08.2]} 5... e6 {[%clk 0:02:56]} 6. Bd3 {[%clk 0:03:08]} 6... Be7 {[%clk
0:02:53.7]} 7. O-O {[%clk 0:03:09]} 7... O-O {[%clk 0:02:54.8]} 8. Be3 {[%clk
0:03:10.5]} 8... cxd4 {[%clk 0:02:54.6]} 9. cxd4 {[%clk 0:03:11.8]} 9... Nc6
{[%clk 0:02:54.8]} 10. Nc3 {[%clk 0:03:13.3]} 10... Qd6 {[%clk 0:02:53.4]} 11.
a3 {[%clk 0:03:14.9]} 11... b6 {[%clk 0:02:54.6]} 12. Qe2 {[%clk 0:03:16.3]}
12... Bb7 {[%clk 0:02:55.9]} 13. Rad1 {[%clk 0:03:17.9]} 13... Rac8 {[%clk
0:02:56.9]} 14. Rfe1 {[%clk 0:03:19.4]} 14... Rfd8 {[%clk 0:02:58.1]} 15. Bb1
{[%clk 0:03:20.9]} 15... Na5 {[%clk 0:02:54.5]} 16. Ne5 {[%clk 0:03:21.6]} 16...
Bd5 {[%clk 0:02:47.9]} 17. Nxd5 {[%clk 0:03:19.4]} 17... Qxd5 {[%clk 0:02:48.5]}
18. b4 {[%clk 0:03:13.6]} 18... Nc4 {[%clk 0:02:48.2]} 19. Ba2 {[%clk
0:03:13.7]} 19... b5 {[%clk 0:02:49.6]} 20. a4 {[%clk 0:03:12.3]} 20... a6
{[%clk 0:02:50.9]} 21. Nxc4 {[%clk 0:03:10.6]} 21... bxc4 {[%clk 0:02:50.7]} 22.
Rb1 {[%clk 0:03:09.7]} 22... Ne4 {[%clk 0:02:51.1]} 23. Rec1 {[%clk 0:03:09.7]}
23... Nd6 {[%clk 0:02:50.1]} 24. b5 {[%clk 0:03:04.2]} 24... axb5 {[%clk
0:02:50.9]} 25. axb5 {[%clk 0:03:05.6]} 25... Rd7 {[%clk 0:02:43.3]} 26. b6
{[%clk 0:03:02.3]} 26... Rb7 {[%clk 0:02:44.2]} 27. Rb4 {[%clk 0:03:00.3]} 27...
h6 {[%clk 0:02:40.4]} 28. Bxc4 {[%clk 0:02:58.5]} 28... Nxc4 {[%clk 0:02:41.1]}
29. Rbxc4 {[%clk 0:02:59.4]} 29... Rxc4 {[%clk 0:02:42.2]} 30. Qxc4 {[%clk
0:03:00.4]} 30... Qxc4 {[%clk 0:02:40.9]} 31. Rxc4 {[%clk 0:03:01]} 31... Rxb6
{[%clk 0:02:42.3]} 32. Kf1 {[%clk 0:03:01.3]} 32... Rb8 {[%clk 0:02:43.2]} 33.
Rc7 {[%clk 0:03:00.5]} 33... Bf6 {[%clk 0:02:43.7]} 34. Rd7 {[%clk 0:03:01.4]}
34... Rb5 {[%clk 0:02:40.3]} 35. Ke2 {[%clk 0:03:01.8]} 35... g5 {[%clk
0:02:41.6]} 36. Kd3 {[%clk 0:03:03]} 36... Kg7 {[%clk 0:02:42.6]} 37. Kc4 {[%clk
0:03:04.3]} 37... Ra5 {[%clk 0:02:43.6]} 38. d5 {[%clk 0:03:04.2]} 38... exd5+
{[%clk 0:02:44.4]} 39. Rxd5 {[%clk 0:03:05]} 39... Ra1 {[%clk 0:02:33]} 40. Rd2
{[%clk 0:02:48.6]} 40... Rg1 {[%clk 0:02:29.9]} 41. f3 {[%clk 0:02:41.1]} 41...
Rc1+ {[%clk 0:02:29.3]} 42. Kd3 {[%clk 0:02:42]} 42... h5 {[%clk 0:02:29.1]} 43.
Rc2 {[%clk 0:02:41.1]} 43... Rb1 {[%clk 0:02:25.2]} 44. Rc5 {[%clk 0:02:37.3]}
44... Kg6 {[%clk 0:02:25.1]} 45. Rc6 {[%clk 0:02:37.1]} 45... Rb3+ {[%clk
0:02:22.7]} 46. Ke2 {[%clk 0:02:37.4]} 46... Kf5 {[%clk 0:02:20]} 47. g4+ {[%clk
0:02:33.4]} 47... hxg4 {[%clk 0:02:18.7]} 48. fxg4+ {[%clk 0:02:34.7]} 48... Ke5
{[%clk 0:02:16.8]} 49. Bd4+ {[%clk 0:02:31.4]} 49... Kxd4 {[%clk 0:02:14.9]} 50.
Rxf6 {[%clk 0:02:32.6]} 50... Rh3 {[%clk 0:02:15.4]} 51. Rxf7 {[%clk 0:02:32.2]}
51... Rxh2+ {[%clk 0:02:16.8]} 52. Kf3 {[%clk 0:02:33.7]} 52... Rh3+ {[%clk
0:02:17.2]} 53. Kg2 {[%clk 0:02:33.7]} 53... Re3 {[%clk 0:02:15.9]} 54. Rf5
{[%clk 0:02:33.4]} 54... Re5 {[%clk 0:02:17]} 55. Rf3 {[%clk 0:02:27.6]} 55...
Ke4 {[%clk 0:02:17.5]} 56. Kg3 {[%clk 0:02:26]} 56... Rd5 {[%clk 0:02:18.8]} 57.
Rf8 {[%clk 0:02:21.8]} 57... Rd3+ {[%clk 0:02:19.5]} 58. Kg2 {[%clk 0:02:23]}
58... Rd2+ {[%clk 0:02:20.5]} 59. Kg3 {[%clk 0:02:23.9]} 59... Rd3+ {[%clk
0:02:21.9]} 60. Kg2 {[%clk 0:02:24.9]} 60... Rd2+ {[%clk 0:02:08.7]} 61. Kg3
{[%clk 0:02:25.5]} 61... Rd3+ {[%clk 0:02:08.5]} 62. Kg2 {[%clk 0:02:25.7]}
62... Rd2+ {[%clk 0:02:09.7]} 1/2-1/2

[Event "*** MasterClass Titled Tuesday Blitz"]
[Site "Chess.com"]
[Date "2017.12.05"]
[Round "2"]
[White "LuisFSiles"]
[Black "Gattass"]
[Result "1-0"]
[WhiteElo "2216"]
[BlackElo "2096"]
[TimeControl "180+2"]
[EndTime "14:34:34 PST"]
[Termination "LuisFSiles won by resignation"]

1. d4 {[%clk 0:03:01.9]} 1... Nf6 {[%clk 0:02:59.5]} 2. c4 {[%clk 0:03:01.9]}
2... g6 {[%clk 0:02:59.8]} 3. Nc3 {[%clk 0:03:02.2]} 3... d5 {[%clk 0:03:00.6]}
4. cxd5 {[%clk 0:03:01.1]} 4... Nxd5 {[%clk 0:03:02.5]} 5. Bd2 {[%clk
0:03:02.3]} 5... Bg7 {[%clk 0:03:02.9]} 6. e4 {[%clk 0:03:02.7]} 6... Nxc3
{[%clk 0:03:02.4]} 7. Bxc3 {[%clk 0:03:03.6]} 7... c5 {[%clk 0:03:01.9]} 8. d5
{[%clk 0:03:03]} 8... e5 {[%clk 0:02:53.4]} 9. Nf3 {[%clk 0:02:41.5]} 9... O-O
{[%clk 0:02:51.4]} 10. Be2 {[%clk 0:02:42.5]} 10... Qd6 {[%clk 0:02:42.8]} 11.
O-O {[%clk 0:02:41.4]} 11... b6 {[%clk 0:02:37.5]} 12. Nd2 {[%clk 0:02:40.5]}
12... Nd7 {[%clk 0:02:30.5]} 13. Nc4 {[%clk 0:02:39.8]} 13... Qc7 {[%clk
0:02:28.9]} 14. a4 {[%clk 0:02:40.1]} 14... Rd8 {[%clk 0:02:24.8]} 15. Qc2
{[%clk 0:02:20.7]} 15... Re8 {[%clk 0:02:17.6]} 16. Rfd1 {[%clk 0:02:11.1]}
16... Bb7 {[%clk 0:02:11.1]} 17. d6 {[%clk 0:02:07.5]} 17... Qc6 {[%clk
0:02:08.6]} 18. Ne3 {[%clk 0:02:08.4]} 18... Qxe4 {[%clk 0:02:06.7]} 19. Bd3
{[%clk 0:02:03]} 19... Qh4 {[%clk 0:01:44]} 20. g3 {[%clk 0:01:56.3]} 20... Qh3
{[%clk 0:01:40.5]} 21. Bf1 {[%clk 0:01:54.3]} 21... Qh5 {[%clk 0:01:37.5]} 22.
Nd5 {[%clk 0:01:54.8]} 22... Rad8 {[%clk 0:01:17.2]} 23. Bg2 {[%clk 0:01:49]}
23... Rb8 {[%clk 0:01:11.2]} 24. a5 {[%clk 0:01:43.9]} 24... Qf5 {[%clk
0:00:38]} 25. Ne7+ {[%clk 0:01:33.5]} 25... Rxe7 {[%clk 0:00:37.3]} 26. Qxf5
{[%clk 0:01:34.5]} 26... gxf5 {[%clk 0:00:37.2]} 27. dxe7 {[%clk 0:01:35.7]}
27... Bxg2 {[%clk 0:00:28.3]} 28. Rxd7 {[%clk 0:01:33]} 1-0

[Event "*** MasterClass Titled Tuesday Blitz"]
[Site "Chess.com"]
[Date "2017.12.05"]
[Round "2"]
[White "BergenChessAcademy"]
[Black "activity5"]
[Result "1-0"]
[WhiteElo "2149"]
[BlackElo "1522"]
[TimeControl "180+2"]
[EndTime "14:34:34 PST"]
[Termination "BergenChessAcademy won by resignation"]

1. e4 {[%clk 0:03:00.8]} 1... c5 {[%clk 0:03:00.5]} 2. Nf3 {[%clk 0:02:37.3]}
2... d6 {[%clk 0:02:52]} 3. Nc3 {[%clk 0:02:09.4]} 3... Nf6 {[%clk 0:02:52.4]}
4. g3 {[%clk 0:02:03.7]} 4... Nc6 {[%clk 0:02:51.1]} 5. d3 {[%clk 0:02:04]} 5...
Bg4 {[%clk 0:02:50]} 6. Bg2 {[%clk 0:02:03.4]} 6... e6 {[%clk 0:02:50.7]} 7. h3
{[%clk 0:02:03.8]} 7... Bxf3 {[%clk 0:02:51.4]} 8. Bxf3 {[%clk 0:02:04.8]} 8...
Be7 {[%clk 0:02:52.9]} 9. Bg2 {[%clk 0:02:05.8]} 9... Rb8 {[%clk 0:02:51.8]} 10.
f4 {[%clk 0:02:06.1]} 10... Nd4 {[%clk 0:02:51.5]} 11. Be3 {[%clk 0:02:05.6]}
11... e5 {[%clk 0:02:51.4]} 12. O-O {[%clk 0:02:04.2]} 12... O-O {[%clk
0:02:50]} 13. g4 {[%clk 0:02:05.2]} 13... Nd7 {[%clk 0:02:49.9]} 14. Nd5 {[%clk
0:02:02.8]} 14... Nb6 {[%clk 0:02:32.4]} 15. Nxe7+ {[%clk 0:01:47.3]} 15... Qxe7
{[%clk 0:02:32.1]} 16. c3 {[%clk 0:01:48.3]} 16... Nc6 {[%clk 0:02:30.7]} 17.
Qe1 {[%clk 0:01:48.9]} 17... Rbc8 {[%clk 0:02:17.4]} 18. Qg3 {[%clk 0:01:48.6]}
18... f6 {[%clk 0:02:17.7]} 19. Kh2 {[%clk 0:01:47.8]} 19... exf4 {[%clk
0:02:15.1]} 20. Bxf4 {[%clk 0:01:48.3]} 20... Ne5 {[%clk 0:02:16.2]} 21. d4
{[%clk 0:01:48.7]} 21... cxd4 {[%clk 0:02:16.6]} 22. cxd4 {[%clk 0:01:49.6]}
22... g5 {[%clk 0:02:01.3]} 23. Bd2 {[%clk 0:01:30.4]} 23... Ng6 {[%clk
0:01:56.4]} 24. Rf2 {[%clk 0:01:16]} 24... Rc2 {[%clk 0:01:49.4]} 25. Qb3+
{[%clk 0:01:14.2]} 25... Rc4 {[%clk 0:01:46.6]} 26. Ba5 {[%clk 0:01:13.4]} 26...
Qe6 {[%clk 0:01:22.8]} 27. Bxb6 {[%clk 0:01:07.9]} 27... axb6 {[%clk 0:01:22.6]}
28. Bf1 {[%clk 0:01:08.8]} 28... b5 {[%clk 0:01:19.9]} 29. Bxc4 {[%clk
0:01:01.6]} 29... bxc4 {[%clk 0:01:20.8]} 30. Qxb7 {[%clk 0:01:01.4]} 30... Qxe4
{[%clk 0:01:19.3]} 31. Qxe4 {[%clk 0:01:00.5]} 31... Nf4 {[%clk 0:01:19.9]} 1-0

[Event "*** MasterClass Titled Tuesday Blitz"]
[Site "Chess.com"]
[Date "2017.12.05"]
[Round "2"]
[White "ChessMavenYeti"]
[Black "goingin33"]
[Result "0-1"]
[WhiteElo "2049"]
[BlackElo "2274"]
[TimeControl "180+2"]
[EndTime "14:34:37 PST"]
[Termination "goingin33 won by resignation"]

1. Nf3 {[%clk 0:03:01.9]} 1... g6 {[%clk 0:03:00.4]} 2. g3 {[%clk 0:03:03]} 2...
Bg7 {[%clk 0:02:56.3]} 3. Bg2 {[%clk 0:03:04.9]} 3... c5 {[%clk 0:02:56.5]} 4.
O-O {[%clk 0:03:05.6]} 4... Nc6 {[%clk 0:02:56.9]} 5. c4 {[%clk 0:03:06.8]} 5...
Nh6 {[%clk 0:02:57.2]} 6. Nc3 {[%clk 0:03:07.8]} 6... Nf5 {[%clk 0:02:58.3]} 7.
d3 {[%clk 0:03:08.6]} 7... d6 {[%clk 0:02:58.9]} 8. Rb1 {[%clk 0:03:02.9]} 8...
Bd7 {[%clk 0:02:53.3]} 9. Bd2 {[%clk 0:03:03.8]} 9... O-O {[%clk 0:02:53.6]} 10.
a3 {[%clk 0:03:05]} 10... a5 {[%clk 0:02:54.4]} 11. Nb5 {[%clk 0:03:05.9]} 11...
Ncd4 {[%clk 0:02:54.7]} 12. Nfxd4 {[%clk 0:03:06.5]} 12... Nxd4 {[%clk
0:02:56.6]} 13. Nxd4 {[%clk 0:03:07.1]} 13... Bxd4 {[%clk 0:02:58.5]} 14. Bxb7
{[%clk 0:03:06.8]} 14... Rb8 {[%clk 0:02:58.7]} 15. Bg2 {[%clk 0:03:05.1]} 15...
Rxb2 {[%clk 0:02:59.4]} 16. Rxb2 {[%clk 0:03:06]} 16... Bxb2 {[%clk 0:03:01.3]}
17. Qb3 {[%clk 0:03:04.4]} 17... Bf6 {[%clk 0:02:54.4]} 18. a4 {[%clk
0:02:57.1]} 18... Qb8 {[%clk 0:02:50.6]} 19. Rb1 {[%clk 0:02:56.8]} 19... Qxb3
{[%clk 0:02:51.5]} 20. Rxb3 {[%clk 0:02:58]} 20... Bxa4 {[%clk 0:02:53.4]} 21.
Ra3 {[%clk 0:02:59.1]} 21... Bd1 {[%clk 0:02:53.2]} 22. Kf1 {[%clk 0:02:52.1]}
22... a4 {[%clk 0:02:54]} 23. Bc6 {[%clk 0:02:47.4]} 23... Bb2 {[%clk 0:02:51]}
24. Rxa4 {[%clk 0:02:32.4]} 24... Bxa4 {[%clk 0:02:50.3]} 25. Bxa4 {[%clk
0:02:34.3]} 25... Ra8 {[%clk 0:02:49.5]} 26. Bc6 {[%clk 0:02:32.5]} 26... Ra1+
{[%clk 0:02:48.2]} 27. Kg2 {[%clk 0:02:33.7]} 27... Ra2 {[%clk 0:02:48.4]} 28.
Bg5 {[%clk 0:02:32.2]} 28... Bf6 {[%clk 0:02:44.1]} 29. Bxf6 {[%clk 0:02:32.8]}
29... exf6 {[%clk 0:02:45.5]} 30. e3 {[%clk 0:02:33.5]} 30... Kf8 {[%clk
0:02:46.7]} 31. Kf3 {[%clk 0:02:34.7]} 31... Ke7 {[%clk 0:02:48.2]} 32. Bd5
{[%clk 0:02:36]} 32... f5 {[%clk 0:02:46.3]} 33. h4 {[%clk 0:02:37]} 33... h6
{[%clk 0:02:47]} 34. e4 {[%clk 0:02:35.8]} 34... fxe4+ {[%clk 0:02:47.9]} 35.
dxe4 {[%clk 0:02:36]} 35... Kf6 {[%clk 0:02:47.8]} 36. Ke3 {[%clk 0:02:34.4]}
36... Ra3+ {[%clk 0:02:48.2]} 37. Kf4 {[%clk 0:02:32.7]} 37... g5+ {[%clk
0:02:44.6]} 38. hxg5+ {[%clk 0:02:33.5]} 38... hxg5+ {[%clk 0:02:46.5]} 39. Kg4
{[%clk 0:02:34.8]} 39... Kg6 {[%clk 0:02:48.1]} 40. f4 {[%clk 0:02:33.6]} 40...
gxf4 {[%clk 0:02:47.6]} 41. gxf4 {[%clk 0:02:34.8]} 41... f5+ {[%clk 0:02:46.4]}
42. exf5+ {[%clk 0:02:32.3]} 42... Kf6 {[%clk 0:02:48]} 43. Be6 {[%clk
0:02:33.5]} 43... Rc3 {[%clk 0:02:46.4]} 44. Kh4 {[%clk 0:02:33.2]} 44... Rf3
{[%clk 0:02:46.1]} 45. Kg4 {[%clk 0:02:34.3]} 45... Rf1 {[%clk 0:02:47.4]} 46.
Kg3 {[%clk 0:02:35.6]} 46... Ke7 {[%clk 0:02:44.6]} 47. Kg4 {[%clk 0:02:36.4]}
47... Kf6 {[%clk 0:02:45]} 48. Kg3 {[%clk 0:02:37.3]} 48... Rg1+ {[%clk
0:02:45.8]} 49. Kf3 {[%clk 0:02:37.2]} 49... Rh1 {[%clk 0:02:45.7]} 50. Kg3
{[%clk 0:02:37.9]} 50... Rh7 {[%clk 0:02:46.3]} 51. Kf3 {[%clk 0:02:38.6]} 51...
Rh6 {[%clk 0:02:47.2]} 52. Kg4 {[%clk 0:02:39.5]} 52... Rh1 {[%clk 0:02:45.7]}
53. Kf3 {[%clk 0:02:40.6]} 53... Kg7 {[%clk 0:02:46.3]} 54. Kg3 {[%clk
0:02:40.9]} 54... Rh6 {[%clk 0:02:46.8]} 55. Kg4 {[%clk 0:02:42.1]} 55... Rf6
{[%clk 0:02:45.7]} 56. Kg5 {[%clk 0:02:43.4]} 56... Rf8 {[%clk 0:02:46.8]} 57.
Bd5 {[%clk 0:02:43.8]} 57... Rf6 {[%clk 0:02:40.4]} 58. Be6 {[%clk 0:02:44.4]}
58... Rh6 {[%clk 0:02:41.6]} 59. Bd5 {[%clk 0:02:45.1]} 59... Rh1 {[%clk
0:02:41.8]} 60. f6+ {[%clk 0:02:45.8]} 60... Kf8 {[%clk 0:02:42.1]} 61. Kf5
{[%clk 0:02:46]} 61... Re1 {[%clk 0:02:41.8]} 62. Kg6 {[%clk 0:02:44.8]} 62...
Rf1 {[%clk 0:02:40.5]} 63. Kf5 {[%clk 0:02:45]} 63... Re1 {[%clk 0:02:41.6]} 64.
Kg6 {[%clk 0:02:46.4]} 64... Re3 {[%clk 0:02:42.1]} 65. Kf5 {[%clk 0:02:46.4]}
65... Rh3 {[%clk 0:02:39.6]} 66. Ke6 {[%clk 0:02:47]} 66... Rh6 {[%clk
0:02:39.4]} 67. f5 {[%clk 0:02:47.3]} 67... Ke8 {[%clk 0:02:39.9]} 68. Bc6+
{[%clk 0:02:45.4]} 68... Kf8 {[%clk 0:02:36.9]} 69. Bd7 {[%clk 0:02:43.5]} 69...
Rh4 {[%clk 0:02:31.9]} 70. Bb5 {[%clk 0:02:41.8]} 70... Rd4 {[%clk 0:02:32.8]}
71. Ba6 {[%clk 0:02:41]} 71... d5 {[%clk 0:02:28.1]} 72. cxd5 {[%clk 0:02:37.2]}
72... c4 {[%clk 0:02:29.3]} 73. Ke5 {[%clk 0:02:36.4]} 73... c3 {[%clk
0:02:28.9]} 74. Kxd4 {[%clk 0:02:34.1]} 74... c2 {[%clk 0:02:30.2]} 75. Ke5
{[%clk 0:02:36]} 75... c1=Q {[%clk 0:02:31.5]} 76. Bb7 {[%clk 0:02:36.4]} 76...
Qb2+ {[%clk 0:02:32.4]} 0-1